[Event "Titled Tuesday Blitz March 15 Early 2022"]
[White "Golubev, Mikhail"]
[Black "Butti, Enrique"]
[WhiteFideId "14100983"]
[BlackFideId "3700470"]
[WhiteElo "2374"]
[BlackElo "2080"]
[Result "1-0"]
[Round "01"]
[TimeControl "180+1"]
[Date "2022.03.15"]
[WhiteClock "0:00:04"]
[BlackClock "0:00:33"]

1. e4 {[%clk 0:02:47]}  e5 {[%clk 0:02:58]} 2. Nf3 {[%clk 0:02:46]}  Nc6 {[%clk 0:02:57]} 3. Bb5 {[%clk 0:02:45]}  a6 {[%clk 0:02:56]} 4. Ba4 {[%clk 0:02:45]}  Nf6 {[%clk 0:02:56]} 5. O-O {[%clk 0:02:44]}  Be7 {[%clk 0:02:55]} 6. Re1 {[%clk 0:02:40]}  b5 {[%clk 0:02:54]} 7. Bb3 {[%clk 0:02:40]}  d6 {[%clk 0:02:53]} 8. a4 {[%clk 0:02:39]}  Bb7 {[%clk 0:02:47]} 9. d3 {[%clk 0:02:34]}  O-O {[%clk 0:02:41]} 10. Nc3 {[%clk 0:02:32]}  Na5 {[%clk 0:02:35]} 11. Ba2 {[%clk 0:02:17]}  b4 {[%clk 0:02:33]} 12. Nd5 {[%clk 0:02:06]}  Nxd5 {[%clk 0:02:29]} 13. Bxd5 {[%clk 0:02:02]}  c6 {[%clk 0:02:26]} 14. Ba2 {[%clk 0:02:00]}  c5 {[%clk 0:02:25]} 15. c3 {[%clk 0:01:47]}  bxc3 {[%clk 0:02:20]} 16. bxc3 {[%clk 0:01:46]}  Kh8 {[%clk 0:02:16]} 17. Rb1 {[%clk 0:01:38]}  f5 {[%clk 0:02:08]} 18. Bd5 {[%clk 0:01:09]}  Bxd5 {[%clk 0:02:04]} 19. exd5 {[%clk 0:01:10]}  Rb8 {[%clk 0:01:53]} 20. Rxb8 {[%clk 0:01:09]}  Qxb8 {[%clk 0:01:52]} 21. Bg5 {[%clk 0:01:08]}  Bxg5 {[%clk 0:01:39]} 22. Nxg5 {[%clk 0:01:09]}  Qb2 {[%clk 0:01:38]} 23. c4 {[%clk 0:00:31]}  h6 {[%clk 0:01:21]} 24. Ne6 {[%clk 0:00:30]}  Rf6 {[%clk 0:01:17]} 25. Qh5 {[%clk 0:00:24]}  Qb8 {[%clk 0:01:13]} 26. h3 {[%clk 0:00:15]}  Kh7 {[%clk 0:01:06]} 27. g4 {[%clk 0:00:13]}  fxg4 {[%clk 0:00:59]} 28. hxg4 {[%clk 0:00:14]}  Qc8 {[%clk 0:00:57]} 29. g5 {[%clk 0:00:11]}  Rxe6 {[%clk 0:00:56]} 30. dxe6 {[%clk 0:00:10]}  Qxe6 {[%clk 0:00:56]} 31. Re3 {[%clk 0:00:10]}  Nb3 {[%clk 0:00:53]} 32. Rg3 {[%clk 0:00:10]}  Nd4 {[%clk 0:00:50]} 33. gxh6 {[%clk 0:00:09]}  Qxh6 {[%clk 0:00:49]} 34. Qxh6+ {[%clk 0:00:08]}  gxh6 {[%clk 0:00:48]} 35. Kg2 {[%clk 0:00:07]}  Ne2 {[%clk 0:00:43]} 36. Re3 {[%clk 0:00:07]}  Nd4 {[%clk 0:00:42]} 37. Re1 {[%clk 0:00:06]}  Kg6 {[%clk 0:00:41]} 38. Rb1 {[%clk 0:00:06]}  h5 {[%clk 0:00:39]} 39. Rb6 {[%clk 0:00:06]}  Kf5 {[%clk 0:00:39]} 40. Rxa6 {[%clk 0:00:05]}  e4 {[%clk 0:00:39]} 41. dxe4+ {[%clk 0:00:04]}  Kxe4 {[%clk 0:00:38]} 42. Rxd6 {[%clk 0:00:05]}  Kd3 {[%clk 0:00:38]} 43. Rh6 {[%clk 0:00:04]}  Kxc4 {[%clk 0:00:38]} 44. Rxh5 {[%clk 0:00:05]}  Kd3 {[%clk 0:00:38]} 45. a5 {[%clk 0:00:04]}  c4 {[%clk 0:00:37]} 46. a6 {[%clk 0:00:04]}  c3 {[%clk 0:00:37]} 47. a7 {[%clk 0:00:04]}  c2 {[%clk 0:00:35]} 48. Rc5 {[%clk 0:00:04]}  Nb5 {[%clk 0:00:35]} 49. Rxc2 {[%clk 0:00:04]}  Kxc2 {[%clk 0:00:34]} 50. a8=Q {[%clk 0:00:02]}  Nc3 {[%clk 0:00:34]} 51. Qb8 {[%clk 0:00:03]}  Kd3 {[%clk 0:00:33]} 52. Qc7 {[%clk 0:00:04]} 1-0


[Site "https://www.chess.com"]

[Event "Titled Tuesday Blitz March 15 Early 2022"]
[White "Goriatchkin, Jouri"]
[Black "Jacobson, Aaron"]
[WhiteFideId "4120183"]
[BlackFideId "2089912"]
[WhiteElo "966"]
[BlackElo "2265"]
[Result "0-1"]
[Round "01"]
[TimeControl "180+1"]
[Date "2022.03.15"]
[WhiteClock "0:00:52"]
[BlackClock "0:02:04"]

1. d4 {[%clk 0:03:00]}  d5 {[%clk 0:02:44]} 2. c4 {[%clk 0:03:00]}  c5 {[%clk 0:02:39]} 3. e3 {[%clk 0:02:48]}  cxd4 {[%clk 0:02:39]} 4. exd4 {[%clk 0:02:48]}  Nf6 {[%clk 0:02:39]} 5. Nf3 {[%clk 0:02:47]}  g6 {[%clk 0:02:40]} 6. Nc3 {[%clk 0:02:47]}  Bg7 {[%clk 0:02:40]} 7. h3 {[%clk 0:02:43]}  O-O {[%clk 0:02:38]} 8. Be3 {[%clk 0:02:41]}  Nc6 {[%clk 0:02:29]} 9. c5 {[%clk 0:02:29]}  b6 {[%clk 0:02:24]} 10. cxb6 {[%clk 0:02:20]}  Qxb6 {[%clk 0:02:15]} 11. Rb1 {[%clk 0:01:38]}  Rd8 {[%clk 0:02:07]} 12. Qc2 {[%clk 0:00:52]}  Bf5 {[%clk 0:02:04]} 13. Bd3 {[%clk 0:00:52]}  Nb4 {[%clk 0:02:04]} 0-1


[Site "https://www.chess.com"]

[Event "Titled Tuesday Blitz March 15 Early 2022"]
[White "Goryachkina, Aleksandra"]
[Black "Samaganova, Aleksandra"]
[WhiteFideId "4147103"]
[BlackFideId "13800221"]
[WhiteElo "2426"]
[BlackElo "1859"]
[Result "1-0"]
[Round "01"]
[TimeControl "180+1"]
[Date "2022.03.15"]
[WhiteClock "0:00:22"]
[BlackClock "0:00:02"]

1. e4 {[%clk 0:02:59]}  c5 {[%clk 0:02:59]} 2. Nf3 {[%clk 0:02:59]}  e6 {[%clk 0:02:59]} 3. c3 {[%clk 0:02:58]}  Nf6 {[%clk 0:02:58]} 4. e5 {[%clk 0:02:58]}  Nd5 {[%clk 0:02:59]} 5. Bc4 {[%clk 0:02:58]}  d6 {[%clk 0:02:56]} 6. d4 {[%clk 0:02:57]}  cxd4 {[%clk 0:02:56]} 7. cxd4 {[%clk 0:02:58]}  Nc6 {[%clk 0:02:57]} 8. O-O {[%clk 0:02:57]}  Be7 {[%clk 0:02:54]} 9. Bd2 {[%clk 0:02:56]}  O-O {[%clk 0:02:50]} 10. Nc3 {[%clk 0:02:55]}  Nxc3 {[%clk 0:02:39]} 11. Bxc3 {[%clk 0:02:56]}  b6 {[%clk 0:02:25]} 12. Qe2 {[%clk 0:02:26]}  Bb7 {[%clk 0:02:21]} 13. Rad1 {[%clk 0:02:19]}  d5 {[%clk 0:02:11]} 14. Bd3 {[%clk 0:02:19]}  Bb4 {[%clk 0:01:56]} 15. h4 {[%clk 0:02:15]}  h6 {[%clk 0:01:38]} 16. Bb1 {[%clk 0:02:14]}  Bxc3 {[%clk 0:01:36]} 17. bxc3 {[%clk 0:02:14]}  a5 {[%clk 0:01:11]} 18. Qc2 {[%clk 0:02:11]}  g6 {[%clk 0:01:11]} 19. h5 {[%clk 0:02:06]}  Ne7 {[%clk 0:01:07]} 20. Nh2 {[%clk 0:01:43]}  Kg7 {[%clk 0:00:49]} 21. Ng4 {[%clk 0:01:38]}  Rc8 {[%clk 0:00:33]} 22. Qd2 {[%clk 0:01:33]}  Ng8 {[%clk 0:00:27]} 23. f4 {[%clk 0:01:24]}  Qh4 {[%clk 0:00:22]} 24. Ne3 {[%clk 0:01:13]}  Qxh5 {[%clk 0:00:19]} 25. Rf3 {[%clk 0:01:00]}  Qh4 {[%clk 0:00:17]} 26. f5 {[%clk 0:00:55]}  exf5 {[%clk 0:00:15]} 27. Bxf5 {[%clk 0:00:55]}  Rc7 {[%clk 0:00:09]} 28. Rdf1 {[%clk 0:00:54]}  Ba6 {[%clk 0:00:05]} 29. R1f2 {[%clk 0:00:49]}  Bc4 {[%clk 0:00:06]} 30. Bxg6 {[%clk 0:00:37]}  fxg6 {[%clk 0:00:04]} 31. Rxf8 {[%clk 0:00:37]}  Qg5 {[%clk 0:00:03]} 32. e6 {[%clk 0:00:32]}  Re7 {[%clk 0:00:03]} 33. R8f7+ {[%clk 0:00:30]}  Rxf7 {[%clk 0:00:03]} 34. Rxf7+ {[%clk 0:00:28]}  Kh8 {[%clk 0:00:04]} 35. Qf2 {[%clk 0:00:28]}  Bd3 {[%clk 0:00:02]} 36. Qf4 {[%clk 0:00:24]}  Qh5 {[%clk 0:00:01]} 37. Qe5+ {[%clk 0:00:20]}  Qxe5 {[%clk 0:00:01]} 38. dxe5 {[%clk 0:00:21]}  g5 {[%clk 0:00:01]} 39. e7 {[%clk 0:00:21]}  Bg6 {[%clk 0:00:02]} 40. e8=Q {[%clk 0:00:21]}  Bxf7 {[%clk 0:00:02]} 41. Qxf7 {[%clk 0:00:22]} 1-0


[Site "https://www.chess.com"]

[Event "Titled Tuesday Blitz March 15 Early 2022"]
[White "Guseva, Marina"]
[Black "Samadov, Read"]
[WhiteFideId "4149351"]
[BlackFideId "13417444"]
[WhiteElo "2160"]
[BlackElo "2084"]
[Result "1-0"]
[Round "01"]
[TimeControl "180+1"]
[Date "2022.03.15"]
[WhiteClock "0:00:22"]
[BlackClock "0:00:08"]

1. d4 {[%clk 0:02:59]}  Nf6 {[%clk 0:02:59]} 2. Nf3 {[%clk 0:02:57]}  d5 {[%clk 0:02:58]} 3. Bf4 {[%clk 0:02:56]}  c5 {[%clk 0:02:58]} 4. e3 {[%clk 0:02:55]}  Nc6 {[%clk 0:02:59]} 5. Nbd2 {[%clk 0:02:54]}  e6 {[%clk 0:02:59]} 6. c3 {[%clk 0:02:53]}  Bd6 {[%clk 0:02:59]} 7. Bg3 {[%clk 0:02:42]}  O-O {[%clk 0:03:00]} 8. Bd3 {[%clk 0:02:41]}  b6 {[%clk 0:02:59]} 9. Qe2 {[%clk 0:02:40]}  Bb7 {[%clk 0:02:58]} 10. e4 {[%clk 0:02:36]}  Be7 {[%clk 0:02:55]} 11. e5 {[%clk 0:02:35]}  Nh5 {[%clk 0:02:55]} 12. h4 {[%clk 0:02:31]}  Nxg3 {[%clk 0:02:50]} 13. fxg3 {[%clk 0:02:30]}  f6 {[%clk 0:02:06]} 14. exf6 {[%clk 0:02:26]}  Bxf6 {[%clk 0:02:05]} 15. Ng5 {[%clk 0:02:04]}  Bxg5 {[%clk 0:01:40]} 16. hxg5 {[%clk 0:01:53]}  Qxg5 {[%clk 0:01:04]} 17. Qxe6+ {[%clk 0:01:36]}  Rf7 {[%clk 0:01:04]} 18. Bxh7+ {[%clk 0:01:34]}  Kf8 {[%clk 0:01:04]} 19. O-O-O {[%clk 0:01:24]}  Re8 {[%clk 0:00:32]} 20. Qd6+ {[%clk 0:01:16]}  Qe7 {[%clk 0:00:31]} 21. Qxd5 {[%clk 0:01:01]}  Rd8 {[%clk 0:00:27]} 22. Qh5 {[%clk 0:00:57]}  Qe3 {[%clk 0:00:07]} 23. Bg6 {[%clk 0:00:46]}  Rfd7 {[%clk 0:00:06]} 24. Rhf1+ {[%clk 0:00:37]}  Ke7 {[%clk 0:00:06]} 25. Rde1 {[%clk 0:00:36]}  cxd4 {[%clk 0:00:07]} 26. Rxe3+ {[%clk 0:00:28]}  dxe3 {[%clk 0:00:07]} 27. Qg5+ {[%clk 0:00:27]}  Kd6 {[%clk 0:00:08]} 28. Qf4+ {[%clk 0:00:23]}  Ne5 {[%clk 0:00:08]} 29. Nc4+ {[%clk 0:00:22]} 1-0


[Site "https://www.chess.com"]

[Event "Titled Tuesday Blitz March 15 Early 2022"]
[White "Harikrishna, Pentala"]
[Black "Chernomordik, Pavel"]
[WhiteFideId "5007003"]
[BlackFideId "2804530"]
[WhiteElo "2574"]
[BlackElo "2249"]
[Result "0-1"]
[Round "01"]
[TimeControl "180+1"]
[Date "2022.03.15"]
[WhiteClock "0:00:53"]
[BlackClock "0:01:13"]

1. d4 {[%clk 0:02:17]}  g6 {[%clk 0:02:59]} 2. Nf3 {[%clk 0:02:17]}  Bg7 {[%clk 0:02:58]} 3. g3 {[%clk 0:02:18]}  d6 {[%clk 0:02:58]} 4. Bg2 {[%clk 0:02:19]}  Nf6 {[%clk 0:02:59]} 5. O-O {[%clk 0:02:19]}  O-O {[%clk 0:02:59]} 6. Re1 {[%clk 0:02:20]}  c6 {[%clk 0:02:58]} 7. e4 {[%clk 0:02:19]}  Nfd7 {[%clk 0:02:58]} 8. c4 {[%clk 0:02:17]}  a6 {[%clk 0:02:48]} 9. a4 {[%clk 0:02:15]}  a5 {[%clk 0:02:47]} 10. Nc3 {[%clk 0:02:14]}  Na6 {[%clk 0:02:47]} 11. h3 {[%clk 0:02:11]}  Nb4 {[%clk 0:02:37]} 12. Be3 {[%clk 0:02:11]}  e5 {[%clk 0:02:35]} 13. Qd2 {[%clk 0:02:08]}  Qe7 {[%clk 0:02:28]} 14. Rad1 {[%clk 0:02:07]}  exd4 {[%clk 0:02:11]} 15. Bxd4 {[%clk 0:02:00]}  Ne5 {[%clk 0:02:06]} 16. Nxe5 {[%clk 0:01:58]}  dxe5 {[%clk 0:02:05]} 17. Bb6 {[%clk 0:01:58]}  Be6 {[%clk 0:02:00]} 18. b3 {[%clk 0:01:47]}  Rfe8 {[%clk 0:01:54]} 19. Na2 {[%clk 0:01:23]}  Nxa2 {[%clk 0:01:45]} 20. Qxa2 {[%clk 0:01:23]}  Qb4 {[%clk 0:01:46]} 21. Bc7 {[%clk 0:01:18]}  Bf8 {[%clk 0:01:24]} 22. Bxe5 {[%clk 0:01:12]}  Bxc4 {[%clk 0:01:22]} 23. bxc4 {[%clk 0:01:04]}  Rxe5 {[%clk 0:01:21]} 24. Rd7 {[%clk 0:00:59]}  Re7 {[%clk 0:01:14]} 25. Rxe7 {[%clk 0:00:53]}  Qxe1+ {[%clk 0:01:13]} 26. Kh2 {[%clk 0:00:53]}  Bxe7 {[%clk 0:01:13]} 0-1


[Site "https://www.chess.com"]

[Event "Titled Tuesday Blitz March 15 Early 2022"]
[White "Hess, Robert"]
[Black "Silva, Kaua Marques"]
[WhiteFideId "2022036"]
[BlackFideId "22701168"]
[WhiteElo "2557"]
[BlackElo "2071"]
[Result "1-0"]
[Round "01"]
[TimeControl "180+1"]
[Date "2022.03.15"]
[WhiteClock "0:00:05"]
[BlackClock "0:00:21"]

1. b3 {[%clk 0:02:38]}  e5 {[%clk 0:02:59]} 2. Bb2 {[%clk 0:02:38]}  Nc6 {[%clk 0:03:00]} 3. e3 {[%clk 0:02:37]}  Nf6 {[%clk 0:02:59]} 4. h3 {[%clk 0:02:37]}  d5 {[%clk 0:02:46]} 5. g4 {[%clk 0:02:33]}  Bd6 {[%clk 0:02:44]} 6. Bg2 {[%clk 0:02:32]}  Be6 {[%clk 0:02:44]} 7. d3 {[%clk 0:02:33]}  h5 {[%clk 0:02:44]} 8. g5 {[%clk 0:02:32]}  Nd7 {[%clk 0:02:44]} 9. h4 {[%clk 0:02:33]}  f6 {[%clk 0:02:44]} 10. Nh3 {[%clk 0:02:21]}  Ne7 {[%clk 0:02:37]} 11. c4 {[%clk 0:02:16]}  c6 {[%clk 0:02:37]} 12. Nc3 {[%clk 0:02:16]}  Qa5 {[%clk 0:02:30]} 13. a3 {[%clk 0:01:45]}  O-O-O {[%clk 0:02:08]} 14. b4 {[%clk 0:01:44]}  Qa6 {[%clk 0:02:03]} 15. b5 {[%clk 0:01:36]}  Qa5 {[%clk 0:01:59]} 16. bxc6 {[%clk 0:01:33]}  bxc6 {[%clk 0:01:59]} 17. cxd5 {[%clk 0:01:31]}  cxd5 {[%clk 0:01:59]} 18. O-O {[%clk 0:01:29]}  Nb6 {[%clk 0:01:59]} 19. Qb3 {[%clk 0:01:14]}  Kd7 {[%clk 0:01:42]} 20. Qb5+ {[%clk 0:01:01]}  Qxb5 {[%clk 0:01:39]} 21. Nxb5 {[%clk 0:01:02]}  Bb8 {[%clk 0:01:37]} 22. f4 {[%clk 0:00:52]}  Nc6 {[%clk 0:01:30]} 23. gxf6 {[%clk 0:00:47]}  gxf6 {[%clk 0:01:31]} 24. fxe5 {[%clk 0:00:46]}  fxe5 {[%clk 0:01:27]} 25. Ng5 {[%clk 0:00:46]}  Rdf8 {[%clk 0:01:22]} 26. Nxe6 {[%clk 0:00:37]}  Kxe6 {[%clk 0:01:21]} 27. Bh3+ {[%clk 0:00:37]}  Ke7 {[%clk 0:01:20]} 28. a4 {[%clk 0:00:37]}  Rxf1+ {[%clk 0:01:15]} 29. Rxf1 {[%clk 0:00:37]}  Rg8+ {[%clk 0:01:15]} 30. Kh1 {[%clk 0:00:36]}  a5 {[%clk 0:00:54]} 31. Bg2 {[%clk 0:00:20]}  Rg4 {[%clk 0:00:50]} 32. e4 {[%clk 0:00:18]}  d4 {[%clk 0:00:43]} 33. Ba3+ {[%clk 0:00:18]}  Nb4 {[%clk 0:00:42]} 34. Bxb4+ {[%clk 0:00:19]}  axb4 {[%clk 0:00:43]} 35. a5 {[%clk 0:00:20]}  Nc8 {[%clk 0:00:39]} 36. Rb1 {[%clk 0:00:11]}  Rxh4+ {[%clk 0:00:39]} 37. Kg1 {[%clk 0:00:11]}  Rg4 {[%clk 0:00:25]} 38. Rxb4 {[%clk 0:00:11]}  Rg6 {[%clk 0:00:23]} 39. Na3 {[%clk 0:00:03]}  Bd6 {[%clk 0:00:20]} 40. Ra4 {[%clk 0:00:04]}  Bxa3 {[%clk 0:00:17]} 41. Rxa3 {[%clk 0:00:04]}  Na7 {[%clk 0:00:17]} 42. Kh2 {[%clk 0:00:03]}  Ra6 {[%clk 0:00:18]} 43. Kh3 {[%clk 0:00:02]}  Nc6 {[%clk 0:00:18]} 44. Rb3 {[%clk 0:00:02]}  Kd6 {[%clk 0:00:18]} 45. Rb7 {[%clk 0:00:02]}  Rxa5 {[%clk 0:00:18]} 46. Rh7 {[%clk 0:00:03]}  Ra3 {[%clk 0:00:18]} 47. Bf1 {[%clk 0:00:03]}  Ra1 {[%clk 0:00:19]} 48. Rh6+ {[%clk 0:00:03]}  Kc5 {[%clk 0:00:19]} 49. Be2 {[%clk 0:00:04]}  Re1 {[%clk 0:00:19]} 50. Bxh5 {[%clk 0:00:01]}  Re3+ {[%clk 0:00:20]} 51. Kg4 {[%clk 0:00:02]}  Rxd3 {[%clk 0:00:20]} 52. Be8 {[%clk 0:00:02]}  Re3 {[%clk 0:00:21]} 53. Rxc6+ {[%clk 0:00:02]}  Kb4 {[%clk 0:00:22]} 54. Bg6 {[%clk 0:00:02]}  d3 {[%clk 0:00:21]} 55. Rd6 {[%clk 0:00:03]}  Kc3 {[%clk 0:00:21]} 56. Kf5 {[%clk 0:00:03]}  d2 {[%clk 0:00:20]} 57. Kxe5 {[%clk 0:00:04]}  Rd3 {[%clk 0:00:20]} 58. Rxd3+ {[%clk 0:00:04]}  Kxd3 {[%clk 0:00:21]} 59. Bh5 {[%clk 0:00:05]}  Kc4 {[%clk 0:00:21]} 60. Kd6 {[%clk 0:00:05]} 1-0


[Site "https://www.chess.com"]

[Event "Titled Tuesday Blitz March 15 Early 2022"]
[White "Jeet, Jain"]
[Black "Paravyan, David"]
[WhiteFideId "5073022"]
[BlackFideId "4194985"]
[WhiteElo "2085"]
[BlackElo "2569"]
[Result "0-1"]
[Round "01"]
[TimeControl "180+1"]
[Date "2022.03.15"]
[WhiteClock "0:00:56"]
[BlackClock "0:00:36"]

1. d4 {[%clk 0:03:00]}  Nf6 {[%clk 0:02:59]} 2. Nf3 {[%clk 0:02:58]}  g6 {[%clk 0:02:59]} 3. Nbd2 {[%clk 0:02:54]}  d5 {[%clk 0:02:58]} 4. g3 {[%clk 0:02:53]}  Bg7 {[%clk 0:02:57]} 5. Bg2 {[%clk 0:02:54]}  O-O {[%clk 0:02:57]} 6. O-O {[%clk 0:02:54]}  c5 {[%clk 0:02:58]} 7. e3 {[%clk 0:02:53]}  cxd4 {[%clk 0:02:50]} 8. exd4 {[%clk 0:02:54]}  Nc6 {[%clk 0:02:51]} 9. c3 {[%clk 0:02:48]}  Bf5 {[%clk 0:02:47]} 10. Re1 {[%clk 0:02:47]}  Rc8 {[%clk 0:02:46]} 11. Nb3 {[%clk 0:02:36]}  Ne4 {[%clk 0:02:34]} 12. Nh4 {[%clk 0:02:36]}  Be6 {[%clk 0:02:34]} 13. Bxe4 {[%clk 0:02:33]}  dxe4 {[%clk 0:02:35]} 14. Nc5 {[%clk 0:02:32]}  Bd5 {[%clk 0:02:35]} 15. Nxe4 {[%clk 0:02:30]}  e5 {[%clk 0:02:31]} 16. dxe5 {[%clk 0:02:20]}  Bxe4 {[%clk 0:02:17]} 17. Qxd8 {[%clk 0:02:18]}  Rfxd8 {[%clk 0:02:18]} 18. Rxe4 {[%clk 0:02:18]}  Rd1+ {[%clk 0:02:18]} 19. Kg2 {[%clk 0:02:18]}  Nxe5 {[%clk 0:02:18]} 20. b3 {[%clk 0:01:57]}  Nd3 {[%clk 0:02:15]} 21. Bb2 {[%clk 0:01:30]}  Nxb2 {[%clk 0:02:14]} 22. Rxd1 {[%clk 0:01:30]}  Nxd1 {[%clk 0:02:15]} 23. c4 {[%clk 0:01:31]}  Bf6 {[%clk 0:02:14]} 24. Nf3 {[%clk 0:01:31]}  Nc3 {[%clk 0:02:14]} 25. Rf4 {[%clk 0:01:29]}  Kg7 {[%clk 0:02:13]} 26. a4 {[%clk 0:01:28]}  Rd8 {[%clk 0:02:09]} 27. g4 {[%clk 0:01:27]}  h6 {[%clk 0:02:07]} 28. h4 {[%clk 0:01:26]}  Re8 {[%clk 0:01:42]} 29. g5 {[%clk 0:01:26]}  hxg5 {[%clk 0:01:43]} 30. hxg5 {[%clk 0:01:27]}  Be5 {[%clk 0:01:43]} 31. Rg4 {[%clk 0:01:25]}  Bb8 {[%clk 0:01:35]} 32. c5 {[%clk 0:01:25]}  Ne4 {[%clk 0:01:25]} 33. b4 {[%clk 0:01:21]}  a5 {[%clk 0:01:14]} 34. bxa5 {[%clk 0:01:20]}  Nxc5 {[%clk 0:01:14]} 35. Rb4 {[%clk 0:01:19]}  Re7 {[%clk 0:01:05]} 36. Nd4 {[%clk 0:01:16]}  Be5 {[%clk 0:00:58]} 37. Nf3 {[%clk 0:01:13]}  Bd6 {[%clk 0:00:49]} 38. Rc4 {[%clk 0:01:12]}  Ne6 {[%clk 0:00:47]} 39. Rc8 {[%clk 0:01:08]}  Rc7 {[%clk 0:00:42]} 40. Ra8 {[%clk 0:01:08]}  Rc5 {[%clk 0:00:41]} 41. a6 {[%clk 0:01:08]}  bxa6 {[%clk 0:00:41]} 42. Rxa6 {[%clk 0:01:07]}  Bc7 {[%clk 0:00:41]} 43. Ra7 {[%clk 0:01:04]}  Nxg5 {[%clk 0:00:37]} 44. Nd4 {[%clk 0:01:01]}  Be5 {[%clk 0:00:36]} 45. Nb5 {[%clk 0:00:59]}  Ne6 {[%clk 0:00:36]} 46. a5 {[%clk 0:00:56]}  Rxb5 {[%clk 0:00:36]} 0-1


[Site "https://www.chess.com"]

[Event "Titled Tuesday Blitz March 15 Early 2022"]
[White "Kett, Tim"]
[Black "Secer, Ata"]
[WhiteFideId "1801210"]
[BlackFideId "6303293"]
[WhiteElo "2098"]
[BlackElo "2282"]
[Result "0-1"]
[Round "01"]
[TimeControl "180+1"]
[Date "2022.03.15"]
[WhiteClock "0:00:01"]
[BlackClock "0:00:21"]

1. e4 {[%clk 0:02:58]}  c5 {[%clk 0:03:00]} 2. Nf3 {[%clk 0:02:57]}  e6 {[%clk 0:03:00]} 3. d4 {[%clk 0:02:58]}  cxd4 {[%clk 0:03:01]} 4. Nxd4 {[%clk 0:02:58]}  Nc6 {[%clk 0:03:02]} 5. Nc3 {[%clk 0:02:58]}  Qc7 {[%clk 0:03:02]} 6. f4 {[%clk 0:02:58]}  a6 {[%clk 0:03:01]} 7. Nxc6 {[%clk 0:02:58]}  bxc6 {[%clk 0:03:02]} 8. Bd3 {[%clk 0:02:58]}  d5 {[%clk 0:03:01]} 9. O-O {[%clk 0:02:57]}  Nf6 {[%clk 0:03:02]} 10. Kh1 {[%clk 0:02:54]}  Be7 {[%clk 0:03:02]} 11. Bd2 {[%clk 0:02:39]}  O-O {[%clk 0:03:01]} 12. Qf3 {[%clk 0:02:37]}  Bb7 {[%clk 0:02:37]} 13. Rae1 {[%clk 0:02:36]}  c5 {[%clk 0:02:36]} 14. e5 {[%clk 0:02:34]}  Nd7 {[%clk 0:02:32]} 15. Qh5 {[%clk 0:02:19]}  g6 {[%clk 0:02:29]} 16. Qh6 {[%clk 0:02:19]}  Rfe8 {[%clk 0:02:17]} 17. h4 {[%clk 0:01:28]}  Qd8 {[%clk 0:02:03]} 18. f5 {[%clk 0:01:14]}  Bf8 {[%clk 0:01:44]} 19. Qf4 {[%clk 0:01:10]}  exf5 {[%clk 0:01:43]} 20. h5 {[%clk 0:00:53]}  Bg7 {[%clk 0:01:30]} 21. hxg6 {[%clk 0:00:49]}  hxg6 {[%clk 0:01:31]} 22. Bxf5 {[%clk 0:00:19]}  gxf5 {[%clk 0:01:10]} 23. Qxf5 {[%clk 0:00:18]}  Qe7 {[%clk 0:01:10]} 24. Bg5 {[%clk 0:00:14]}  Qe6 {[%clk 0:01:05]} 25. Qf4 {[%clk 0:00:05]}  d4 {[%clk 0:00:53]} 26. Ne4 {[%clk 0:00:04]}  Bxe4 {[%clk 0:00:49]} 27. Rxe4 {[%clk 0:00:04]}  Nf8 {[%clk 0:00:48]} 28. Qh4 {[%clk 0:00:02]}  Ng6 {[%clk 0:00:46]} 29. Qg3 {[%clk 0:00:01]}  Bxe5 {[%clk 0:00:23]} 30. Bf4 {[%clk 0:00:01]}  Bxf4 {[%clk 0:00:20]} 31. Rfxf4 {[%clk 0:00:01]}  Qxe4 {[%clk 0:00:19]} 32. Rxe4 {[%clk 0:00:01]}  Rxe4 {[%clk 0:00:20]} 33. Qf3 {[%clk 0:00:01]}  Rae8 {[%clk 0:00:21]} 34. b4 {[%clk 0:00:01]}  cxb4 {[%clk 0:00:21]} 0-1


[Site "https://www.chess.com"]

[Event "Titled Tuesday Blitz March 15 Early 2022"]
[White "Kovanova, Baira"]
[Black "Maghsoodloo, Parham"]
[WhiteFideId "4164083"]
[BlackFideId "12539929"]
[WhiteElo "2190"]
[BlackElo "2630"]
[Result "1-0"]
[Round "01"]
[TimeControl "180+1"]
[Date "2022.03.15"]
[WhiteClock "0:00:23"]
[BlackClock "0:00:02"]

1. e4 {[%clk 0:02:59]}  c5 {[%clk 0:02:57]} 2. Nf3 {[%clk 0:02:58]}  d6 {[%clk 0:01:17]} 3. d4 {[%clk 0:02:57]}  cxd4 {[%clk 0:01:16]} 4. Nxd4 {[%clk 0:02:57]}  Nf6 {[%clk 0:01:17]} 5. Nc3 {[%clk 0:02:57]}  Nc6 {[%clk 0:01:17]} 6. Bg5 {[%clk 0:02:56]}  e6 {[%clk 0:01:15]} 7. Qd2 {[%clk 0:02:55]}  a6 {[%clk 0:01:16]} 8. O-O-O {[%clk 0:02:53]}  Bd7 {[%clk 0:01:16]} 9. f4 {[%clk 0:02:51]}  Be7 {[%clk 0:00:58]} 10. Nb3 {[%clk 0:02:43]}  b5 {[%clk 0:00:49]} 11. Bxf6 {[%clk 0:02:25]}  gxf6 {[%clk 0:00:37]} 12. Be2 {[%clk 0:02:21]}  h5 {[%clk 0:00:33]} 13. f5 {[%clk 0:02:14]}  Qb6 {[%clk 0:00:18]} 14. Rhf1 {[%clk 0:02:12]}  O-O-O {[%clk 0:00:18]} 15. Kb1 {[%clk 0:01:53]}  Kb8 {[%clk 0:00:18]} 16. a3 {[%clk 0:01:47]}  h4 {[%clk 0:00:16]} 17. Na2 {[%clk 0:01:20]}  Bc8 {[%clk 0:00:16]} 18. Nb4 {[%clk 0:01:19]}  Nxb4 {[%clk 0:00:15]} 19. axb4 {[%clk 0:01:14]}  Bb7 {[%clk 0:00:15]} 20. Bf3 {[%clk 0:01:13]}  d5 {[%clk 0:00:12]} 21. exd5 {[%clk 0:01:10]}  e5 {[%clk 0:00:12]} 22. Na5 {[%clk 0:01:08]}  Bd6 {[%clk 0:00:05]} 23. Nc6+ {[%clk 0:01:03]}  Bxc6 {[%clk 0:00:05]} 24. dxc6 {[%clk 0:01:03]}  Bc7 {[%clk 0:00:06]} 25. Qc3 {[%clk 0:00:56]}  Rd4 {[%clk 0:00:06]} 26. Rxd4 {[%clk 0:00:51]}  Qxd4 {[%clk 0:00:06]} 27. Qxd4 {[%clk 0:00:47]}  exd4 {[%clk 0:00:06]} 28. Re1 {[%clk 0:00:47]}  Be5 {[%clk 0:00:06]} 29. Re4 {[%clk 0:00:46]}  Kc7 {[%clk 0:00:06]} 30. h3 {[%clk 0:00:45]}  Kd6 {[%clk 0:00:04]} 31. Rg4 {[%clk 0:00:39]}  Kc7 {[%clk 0:00:02]} 32. Rg7 {[%clk 0:00:39]}  Rf8 {[%clk 0:00:03]} 33. Bd5 {[%clk 0:00:38]}  Kd6 {[%clk 0:00:03]} 34. Bf3 {[%clk 0:00:30]}  Bf4 {[%clk 0:00:04]} 35. Rg4 {[%clk 0:00:27]}  Be3 {[%clk 0:00:02]} 36. Rxh4 {[%clk 0:00:26]}  Re8 {[%clk 0:00:03]} 37. Re4 {[%clk 0:00:25]}  Rg8 {[%clk 0:00:02]} 38. c3 {[%clk 0:00:23]} 1-0


[Site "https://www.chess.com"]